fUST/lending_fUST_20240918
["ID","MTS","AMOUNT","RATE_DAILY","PERIOD"]
[338456660,1726654244454,-787.645506,0.00019178,2]
[338456662,1726654244463,-787.645506,0.00019178,2]
[338456664,1726654244472,-500.0,0.00019178,2]
[338456666,1726654244482,-787.645506,0.00019178,2]
[338456668,1726654244491,-1961.8,0.00019178,2]
[338456670,1726654244502,-500.0,0.00019178,2]
[338456672,1726654244513,-787.645506,0.00019178,2]
[338456674,1726654244522,-1224.24,0.00019178,2]
[338456676,1726654244532,-500.0,0.00019178,2]
[338456678,1726654244541,-787.645506,0.00019178,2]
[338456680,1726654244550,-734.86,0.00019178,2]
[338456682,1726654244558,-856.01,0.00019178,2]
[338456684,1726654244569,-911.29,0.00019178,2]
[338456686,1726654244578,-1344.85,0.00019178,2]
[338456688,1726654244588,-500.0,0.00019178,2]
[338456691,1726654244599,-500.0,0.00019178,2]
[338456693,1726654244610,-500.0,0.00019178,2]
[338456695,1726654244619,-500.0,0.00019178,2]
[338456697,1726654244629,-1236.97,0.00019178,2]
[338456699,1726654244638,-500.0,0.00019178,2]
[338456701,1726654244647,-500.0,0.00019178,2]
[338456703,1726654244657,-500.0,0.00019178,2]
[338456705,1726654244666,-1209.0,0.00019178,2]
[338456707,1726654244679,-2290.91,0.00019178,2]
[338456709,1726654244688,-1227.51,0.00019178,2]
[338456711,1726654244697,-500.0,0.00019178,2]
[338456713,1726654244707,-500.0,0.00019178,2]
[338456714,1726654244716,-1424.66,0.00019178,2]
[338456716,1726654244725,-500.0,0.00019178,2]
[338456718,1726654244735,-500.0,0.00019178,2]
[338456720,1726654244744,-223.49469264,0.00019178,2]
[338456722,1726654244753,-500.0,0.00019178,2]
[338456723,1726654244763,-1173.64,0.00019178,2]
[338456724,1726654244772,-673.66,0.00019178,2]
[338456725,1726654244781,-2158.53,0.00019178,2]
[338456726,1726654244790,-698.0,0.00019178,2]
[338456727,1726654244799,-151.0,0.00019178,2]
[338456729,1726654244808,-1239.64,0.00019178,2]
[338456730,1726654244818,-154.778277,0.00019178,2]
[338456731,1726654244828,-500.0,0.00019178,2]
[338456732,1726654244838,-500.0,0.00019178,2]
[338456733,1726654244847,-1233.24,0.00019178,2]
[338456734,1726654244857,-2528.92,0.00019178,2]
[338456735,1726654244866,-500.0,0.00019178,2]
[338456736,1726654244875,-1052.0,0.00019178,2]
[338456737,1726654244884,-4484.86,0.00019178,2]
[338456738,1726654244893,-500.0,0.00019178,2]
[338456739,1726654244903,-3611.4,0.00019178,2]
[338456740,1726654244912,-2548.5,0.00019178,2]
[338456741,1726654244922,-1635.57,0.00019178,2]
[338456742,1726654244933,-500.0,0.00019178,2]
[338456743,1726654244946,-500.0,0.00019178,2]
[338456744,1726654244959,-500.0,0.00019178,2]
[338456745,1726654244970,-500.0,0.00019178,2]
[338456746,1726654244980,-655.84,0.00019178,2]
[338456747,1726654244990,-500.0,0.00019178,2]
[338456748,1726654245140,-500.0,0.00019178,2]
[338456749,1726654245150,-721.45,0.00019178,2]
[338456750,1726654245160,-823.25,0.00019178,2]
[338456751,1726654245170,-580.53,0.00019178,2]
[338456752,1726654245179,-1753.09,0.00019178,2]
[338456753,1726654245189,-500.0,0.00019178,2]
[338456754,1726654245198,-12647.46,0.00019178,2]
[338456755,1726654245207,-1016.91,0.00019178,2]
[338456756,1726654245217,-500.0,0.00019178,2]
[338456757,1726654245226,-500.0,0.00019178,2]
[338456758,1726654245235,-500.0,0.00019178,2]
[338456759,1726654245245,-500.0,0.00019178,2]
[338456760,1726654245255,-2144.44,0.00019178,2]
[338456761,1726654245265,-1282.13,0.00019178,2]
[338456762,1726654245275,-500.0,0.00019178,2]
[338456763,1726654245284,-500.0,0.00019178,2]
[338456764,1726654245294,-500.0,0.00019178,2]
[338456765,1726654245304,-229.30462457,0.00019178,2]
[338456766,1726654245315,-1872.08,0.00019178,2]
[338456767,1726654245324,-684.1,0.00019178,2]
[338456768,1726654245333,-151.0,0.00019178,2]
[338456769,1726654245343,-151.0,0.00019178,2]
[338456770,1726654245353,-519.35,0.00019178,2]
[338456771,1726654245362,-1959.35,0.00019178,2]
[338456772,1726654245371,-151.0,0.00019178,2]
[338456773,1726654245381,-666.72,0.00019178,2]
[338456774,1726654245390,-151.0,0.00019178,2]
[338456775,1726654245399,-1290.78,0.00019178,2]
[338456776,1726654245409,-500.0,0.00019178,2]
[338456777,1726654245419,-151.0,0.00019178,2]
[338456778,1726654245429,-151.0,0.00019178,2]
[338456779,1726654245439,-500.0,0.00019178,2]
[338456780,1726654245448,-151.0,0.00019178,2]
[338456781,1726654245457,-151.0,0.00019178,2]
[338456782,1726654245466,-500.0,0.00019178,2]
[338456783,1726654245475,-500.0,0.00019178,2]
[338456784,1726654245484,-560.6,0.00019178,2]
[338456785,1726654245493,-756.43,0.00019178,2]
[338456786,1726654245502,-500.0,0.00019178,2]
[338456787,1726654245511,-1019.46,0.00019178,2]
[338456788,1726654245520,-151.0,0.00019178,2]
[338456789,1726654245530,-151.0,0.00019178,2]
[338456790,1726654245540,-762.5,0.00019178,2]
[338456791,1726654245549,-151.0,0.00019178,2]
[338456792,1726654245559,-151.0,0.00019178,2]
[338456793,1726654245569,-151.0,0.00019178,2]
[338456794,1726654245579,-521.55,0.00019178,2]
[338456795,1726654245589,-274.580942,0.00019178,2]
[338456796,1726654245598,-691.79,0.00019178,2]
[338456797,1726654245607,-500.0,0.00019178,2]
[338456798,1726654245616,-500.0,0.00019178,2]
[338456799,1726654245626,-779.3,0.00019178,2]
[338456800,1726654245635,-500.0,0.00019178,2]
[338456801,1726654245644,-1301.78,0.00019178,2]
[338456802,1726654245654,-500.0,0.00019178,2]
[338456803,1726654245663,-500.0,0.00019178,2]
[338456804,1726654245674,-500.0,0.00019178,2]
[338456805,1726654245687,-500.0,0.00019178,2]
[338456806,1726654245698,-500.0,0.00019178,2]
[338456807,1726654245708,-1344.5,0.00019178,2]
[338456808,1726654245719,-1184.37,0.00019178,2]
[338456809,1726654245729,-500.0,0.00019178,2]
[338456810,1726654245739,-1613.49,0.00019178,2]
[338456811,1726654245750,-779.76,0.00019178,2]
[338456812,1726654245761,-500.0,0.00019178,2]
[338456813,1726654245770,-2301.74,0.00019178,2]
[338456814,1726654245779,-2350.3,0.00019178,2]
[338456815,1726654245789,-500.0,0.00019178,2]
[338456816,1726654245798,-219.85106024,0.00019178,2]
[338456817,1726654245807,-500.0,0.00019178,2]
[338456818,1726654245817,-299.29617501,0.00019178,2]
[338456819,1726654245826,-500.0,0.00019178,2]
[338456820,1726654245835,-500.0,0.00019178,2]
[338456821,1726654245845,-151.0,0.00019178,2]
[338456822,1726654245854,-500.0,0.00019178,2]
[338456823,1726654245863,-151.0,0.00019178,2]
[338456824,1726654245873,-693.07,0.00019178,2]
[338456825,1726654245882,-151.0,0.00019178,2]
[338456826,1726654245891,-1601.5,0.00019178,2]
[338456827,1726654245901,-151.0,0.00019178,2]
[338456828,1726654245910,-569.48,0.00019178,2]
[338456829,1726654245919,-251.20258883,0.00019178,2]
[338456830,1726654245929,-595.67,0.00019178,2]
[338456831,1726654245938,-500.0,0.00019178,2]
[338456832,1726654245947,-1207.09,0.00019178,2]
[338456833,1726654245957,-500.0,0.00019178,2]
[338456834,1726654245967,-2086.01,0.00019178,2]
[338456835,1726654245978,-1252.64,0.00019178,2]
[338456836,1726654245988,-500.0,0.00019178,2]
[338456837,1726654245998,-500.0,0.00019178,2]
[338456838,1726654246007,-500.0,0.00019178,2]
[338456840,1726654246016,-500.0,0.00019178,2]
[338456841,1726654246027,-3353.74,0.00019178,2]
[338456842,1726654246038,-1004.66,0.00019178,2]
[338456843,1726654246047,-1046.08,0.00019178,2]
[338456844,1726654246057,-1150.67,0.00019178,2]
[338456845,1726654246069,-1347.2,0.00019178,2]
[338456846,1726654246079,-500.0,0.00019178,2]
[338456847,1726654246090,-500.0,0.00019178,2]
[338456848,1726654246100,-500.0,0.00019178,2]
[338456849,1726654246110,-500.0,0.00019178,2]
[338456850,1726654246122,-500.0,0.00019178,2]
[338456851,1726654246132,-500.0,0.00019178,2]
[338456852,1726654246142,-500.0,0.00019178,2]
[338456853,1726654246152,-961.69,0.00019178,2]
[338456854,1726654246163,-500.0,0.00019178,2]
[338456855,1726654246173,-500.0,0.00019178,2]
[338456856,1726654246183,-500.0,0.00019178,2]
[338456857,1726654246194,-500.0,0.00019178,2]
[338456858,1726654246204,-2023.44,0.00019178,2]
[338456859,1726654246215,-500.0,0.00019178,2]
[338456860,1726654246226,-500.0,0.00019178,2]
[338456861,1726654246236,-500.0,0.00019178,2]
[338456862,1726654246247,-626.71542843,0.00019178,2]
[338456863,1726654246256,-500.0,0.00019178,2]
[338456864,1726654246268,-500.0,0.00019178,2]
[338456865,1726654246279,-2522.26,0.00019178,2]
[338456866,1726654246288,-1351.31,0.00019178,2]
[338456867,1726654246298,-683.38,0.00019178,2]
[338456868,1726654246310,-1525.6,0.00019178,2]
[338456869,1726654246329,-500.0,0.00019178,2]
[338456870,1726654246339,-1523.88,0.00019178,2]
[338456871,1726654246349,-500.0,0.00019178,2]
[338456872,1726654246358,-500.0,0.00019178,2]
[338456873,1726654246367,-500.0,0.00019178,2]
[338456874,1726654246378,-500.0,0.00019178,2]
[338456875,1726654246388,-500.0,0.00019178,2]
[338456876,1726654246398,-774.27,0.00019178,2]
[338456877,1726654246409,-3273.15,0.00019178,2]
[338456878,1726654246419,-1390.71,0.00019178,2]
[338456879,1726654246428,-851.41,0.00019178,2]
[338456880,1726654246437,-500.0,0.00019178,2]
[338456881,1726654246447,-500.0,0.00019178,2]
[338456882,1726654246456,-75909.65124706,0.00019178,2]
[338456883,1726654246891,-1256.38284064,0.00019178,2]
[338456884,1726654246907,-716.68371583,0.00019178,2]
[338456890,1726654247864,174.04,0.00010959,2]
[338456891,1726654248217,-11339.14947988,0.00019178,5]
[338456892,1726654248227,-1509.62219647,0.00019178,2]
[338456893,1726654248237,-500.0,0.00019178,2]
[338456894,1726654248246,-500.0,0.00019178,2]
[338456895,1726654248256,-6651.08,0.00019178,2]
[338456896,1726654248266,-151.0,0.00019178,2]
[338456897,1726654248276,-500.0,0.00019178,2]
[338456898,1726654248286,-500.0,0.00019178,2]
[338456899,1726654248295,-151.0,0.00019178,2]
[338456900,1726654248304,-1691.62,0.00019178,2]
[338456901,1726654248315,-151.0,0.00019178,2]
[338456902,1726654248325,-500.0,0.00019178,2]
[338456903,1726654248334,-754.22,0.00019178,2]
[338456904,1726654248344,-500.0,0.00019178,2]
[338456905,1726654248354,-151.0,0.00019178,2]
[338456906,1726654248363,-500.0,0.00019178,2]
[338456907,1726654248372,-151.0,0.00019178,2]
[338456908,1726654248381,-1324.01,0.00019178,2]
[338456909,1726654248391,-151.0,0.00019178,2]
[338456910,1726654248400,-151.0,0.00019178,2]
[338456911,1726654248410,-500.0,0.00019178,2]
[338456912,1726654248419,-500.0,0.00019178,2]
[338456913,1726654248428,-151.0,0.00019178,2]
[338456914,1726654248438,-500.0,0.00019178,2]
[338456915,1726654248447,-559.26,0.00019178,2]
[338456916,1726654248457,-500.0,0.00019178,2]
[338456917,1726654248467,-151.0,0.00019178,2]
[338456918,1726654248476,-1628.88,0.00019178,2]
[338456919,1726654248486,-642.74,0.00019178,2]
[338456920,1726654248495,-500.0,0.00019178,2]
[338456921,1726654248505,-151.0,0.00019178,2]
[338456922,1726654248515,-1351.5,0.00019178,2]
[338456923,1726654248524,-151.0,0.00019178,2]
[338456924,1726654248533,-1104.91,0.00019178,2]
[338456925,1726654248543,-1171.98,0.00019178,2]
[338456926,1726654248552,-901.99,0.00019178,2]
[338456927,1726654248562,-669.17,0.00019178,2]
[338456928,1726654248571,-151.0,0.00019178,2]
[338456929,1726654248581,-262.264992,0.00019178,2]
[338456930,1726654248590,-1029.93,0.00019178,2]
[338456931,1726654248600,-500.0,0.00019178,2]
[338456932,1726654248609,-500.0,0.00019178,2]
[338456933,1726654248619,-1315.03,0.00019178,2]
[338456934,1726654248628,-500.0,0.00019178,2]
[338456935,1726654248637,-1388.58,0.00019178,2]
[338456936,1726654248647,-928.27,0.00019178,2]
[338456937,1726654248656,-500.0,0.00019178,2]
[338456938,1726654248666,-964.75,0.00019178,2]
[338456939,1726654248677,-2354.6,0.00019178,2]
[338456940,1726654248687,-500.0,0.00019178,2]
[338456941,1726654248696,-500.0,0.00019178,2]
[338456942,1726654248705,-852.84,0.00019178,2]
[338456943,1726654248715,-500.0,0.00019178,2]
[338456944,1726654248725,-1039.88,0.00019178,2]
[338456945,1726654248734,-309.0,0.00019178,2]
[338456946,1726654248745,-500.0,0.00019178,2]
[338456947,1726654248755,-618.38,0.00019178,2]
[338456948,1726654248764,-9486.04,0.00019178,2]
[338456949,1726654248773,-500.0,0.00019178,2]
[338456950,1726654248782,-670.63,0.00019178,2]
[338456951,1726654248792,-2779.73,0.00019178,2]
[338456952,1726654248801,-500.0,0.00019178,2]
[338456953,1726654248812,-500.0,0.00019178,2]
[338456954,1726654248821,-500.0,0.00019178,2]
[338456955,1726654248830,-951.77,0.00019178,2]
[338456956,1726654248840,-2299.42,0.00019178,2]
[338456957,1726654248850,-2058.38,0.00019178,2]
[338456958,1726654248860,-1830.33,0.00019178,2]
[338456959,1726654248869,-1202.71,0.00019178,2]
[338456960,1726654248878,-1309.58,0.00019178,2]
[338456961,1726654248888,-1170.86,0.00019178,2]
[338456962,1726654248897,-658.88,0.00019178,2]
[338456963,1726654248907,-631.2349965,0.00019178,2]
[338456964,1726654248916,-2724.29,0.00019178,2]
[338456965,1726654248925,-500.0,0.00019178,2]
[338456966,1726654248935,-617.25,0.00019178,2]
[338456967,1726654248944,-157.227667,0.00019178,2]
[338456968,1726654248954,-151.0,0.00019178,2]
[338456969,1726654248963,-158.183708,0.00019178,2]
[338456970,1726654248972,-158.183708,0.00019178,2]
[338456971,1726654248981,-158.183708,0.00019178,2]
[338456972,1726654248990,-158.183708,0.00019178,2]
[338456973,1726654249000,-158.183708,0.00019178,2]
[338456974,1726654249009,-158.183708,0.00019178,2]
[338456975,1726654249018,-158.183708,0.00019178,2]
[338456976,1726654249028,-158.183708,0.00019178,2]
[338456977,1726654249037,-158.183708,0.00019178,2]
[338456978,1726654249047,-158.183708,0.00019178,2]
[338456979,1726654249057,-158.183708,0.00019178,2]
[338456980,1726654249067,-158.183708,0.00019178,2]
[338456981,1726654249076,-158.183708,0.00019178,2]
[338456982,1726654249086,-158.183708,0.00019178,2]
[338456983,1726654249096,-158.183708,0.00019178,2]
[338456984,1726654249105,-158.183708,0.00019178,2]
[338456985,1726654249115,-158.183708,0.00019178,2]
[338456986,1726654249124,-158.183708,0.00019178,2]
[338456987,1726654249134,-158.183708,0.00019178,2]
[338456988,1726654249143,-166.980607,0.00019178,2]
[338456989,1726654249153,-158.183708,0.00019178,2]
[338456990,1726654249162,-1200.85,0.000192,2]
[338456991,1726654249171,-4247.39,0.000192,2]
[338456992,1726654249181,-150.112233,0.000192,2]
[338456993,1726654249191,-150.112233,0.000192,2]
[338456994,1726654249201,-150.112233,0.000192,2]
[338456995,1726654249210,-150.112233,0.000192,2]
[338456996,1726654249220,-150.112233,0.000192,2]
[338456997,1726654249230,-150.112235,0.000192,2]
[338456998,1726654249239,-268205.56,0.000192,2]
[338456999,1726654249249,-44839.88,0.000192,2]
[338457000,1726654249259,-257.344511,0.000192,2]
[338457001,1726654249269,-787.645506,0.000192,2]
[338457002,1726654249279,-257.344517,0.000192,2]
[338457003,1726654249289,-27803.42,0.000192,2]
[338457004,1726654249298,-787.645508,0.000192,2]
[338457005,1726654249308,-4289.78489066,0.00019437,2]
[338457006,1726654249319,-500.0,0.00019452,2]
[338457007,1726654249328,-583.57,0.00019452,2]
[338457008,1726654249338,-500.0,0.00019452,2]
[338457009,1726654249348,-930.6,0.00019452,2]
[338457010,1726654249358,-500.0,0.00019452,2]
[338457011,1726654249367,-500.0,0.00019452,2]
[338457012,1726654249377,-500.0,0.00019452,2]
[338457013,1726654249387,-505.09,0.00019452,2]
[338457014,1726654249543,-1043.4,0.00019452,2]
[338457015,1726654249552,-1840.04,0.00019452,2]
[338457016,1726654249564,-500.0,0.00019452,2]
[338457017,1726654249576,-500.0,0.00019452,2]
[338457018,1726654249587,-500.0,0.00019452,2]
[338457019,1726654249597,-500.0,0.00019452,2]
[338457020,1726654249608,-500.0,0.00019452,2]
[338457021,1726654249618,-500.0,0.00019452,2]
[338457022,1726654249628,-473.23230092,0.00019452,2]
[338457023,1726654249637,-500.0,0.00019452,2]
[338457024,1726654249646,-500.0,0.00019452,2]
[338457025,1726654249656,-500.0,0.00019452,2]
[338457026,1726654249665,-500.0,0.00019452,2]
[338457027,1726654249677,-818.34,0.00019452,2]
[338457028,1726654249687,-500.0,0.00019452,2]
[338457029,1726654249697,-500.0,0.00019452,2]
[338457030,1726654249708,-676.35,0.00019452,2]
[338457031,1726654249718,-500.0,0.00019452,2]
[338457032,1726654249728,-500.0,0.00019452,2]
[338457033,1726654249738,-500.0,0.00019452,2]
[338457034,1726654249747,-500.0,0.00019452,2]
[338457035,1726654249758,-500.0,0.00019452,2]
[338457036,1726654249768,-500.0,0.00019452,2]
[338457037,1726654249778,-500.0,0.00019452,2]
[338457038,1726654249788,-176.16856443,0.00019452,2]
[338457039,1726654249797,-730.56,0.00019452,2]
[338457040,1726654249807,-517.59,0.00019452,2]
[338457041,1726654249822,-500.0,0.00019452,2]
[338457042,1726654249833,-686.97,0.00019452,2]
[338457043,1726654249845,-500.0,0.00019452,2]
[338457044,1726654249854,-500.0,0.00019452,2]
[338457045,1726654249864,-2193.58,0.00019452,2]
[338457046,1726654249874,-2001.7,0.00019452,2]
[338457047,1726654249883,-507.65,0.00019452,2]
[338457048,1726654249893,-500.0,0.00019452,2]
[338457049,1726654249903,-500.0,0.00019452,2]
[338457050,1726654249913,-934.75,0.00019452,2]
[338457051,1726654249923,-575.45,0.00019452,2]
[338457052,1726654249933,-500.0,0.00019452,2]
[338457053,1726654249944,-624.9061765,0.00019452,2]
[338457054,1726654249954,-500.0,0.00019452,2]
[338457055,1726654249965,-1415.21,0.00019452,2]
[338457056,1726654249974,-500.0,0.00019452,2]
[338457057,1726654249984,-500.0,0.00019452,2]
[338457058,1726654249992,-500.0,0.00019452,2]
[338457059,1726654250002,-1343.4,0.00019452,2]
[338457060,1726654250011,-500.0,0.00019452,2]
[338457061,1726654250022,-546.82,0.00019452,2]
[338457062,1726654250031,-1174.47,0.00019452,2]
[338457063,1726654250040,-500.0,0.00019452,2]
[338457064,1726654250049,-1811.67,0.00019452,2]
[338457065,1726654250059,-2059.16,0.00019452,2]
[338457066,1726654250071,-500.0,0.00019452,2]
[338457067,1726654250081,-500.0,0.00019452,2]
[338457068,1726654250090,-500.0,0.00019452,2]
[338457069,1726654250101,-500.0,0.00019452,2]
[338457070,1726654250110,-601.87,0.00019452,2]
[338457071,1726654250120,-500.0,0.00019452,2]
[338457072,1726654250130,-500.0,0.00019452,2]
[338457073,1726654250142,-636.98,0.00019452,2]
[338457074,1726654250151,-534.03,0.00019452,2]
[338457075,1726654250161,-500.0,0.00019452,2]
[338457076,1726654250171,-693.15,0.00019452,2]
[338457077,1726654250181,-555.56,0.00019452,2]
[338457078,1726654250192,-500.0,0.00019452,2]
[338457079,1726654250205,-500.0,0.00019452,2]
[338457080,1726654250216,-500.0,0.00019452,2]
[338457081,1726654250226,-500.0,0.00019452,2]
[338457082,1726654250237,-500.0,0.00019452,2]
[338457083,1726654250246,-528.41126972,0.00019452,2]
[338457084,1726654250255,-500.0,0.00019452,2]
[338457085,1726654250266,-500.0,0.00019452,2]
[338457086,1726654250275,-575.41,0.00019452,2]
[338457087,1726654250286,-500.0,0.00019452,2]
[338457088,1726654250297,-500.0,0.00019452,2]
[338457089,1726654250308,-546.67,0.00019452,2]
[338457090,1726654250319,-500.0,0.00019452,2]
[338457091,1726654250331,-2096.31,0.00019452,2]
[338457092,1726654250341,-500.0,0.00019452,2]
[338457093,1726654250351,-500.0,0.00019452,2]
[338457094,1726654250361,-500.0,0.00019452,2]
[338457095,1726654250371,-2066.42,0.00019452,2]
[338457096,1726654250380,-543.95,0.00019452,2]
[338457097,1726654250390,-500.0,0.00019452,2]
[338457098,1726654250399,-500.0,0.00019452,2]
[338457099,1726654250409,-471.39108786,0.00019452,2]
[338457100,1726654250418,-500.0,0.00019452,2]
[338457101,1726654250428,-500.0,0.00019452,2]
[338457102,1726654250437,-500.0,0.00019452,2]
[338457103,1726654250447,-300.49662093,0.00019452,2]
[338457104,1726654250457,-2448.98,0.00019452,2]
[338457105,1726654250466,-496.06640418,0.00019452,2]
[338457106,1726654250475,-2011.27,0.00019452,2]
[338457107,1726654250485,-1750.27,0.00019452,2]
[338457108,1726654250495,-500.0,0.00019452,2]
[338457109,1726654250504,-2181.79,0.00019452,2]
[338457110,1726654250513,-1068.84,0.00019452,2]
[338457111,1726654250523,-537.26774126,0.00019452,2]
[338457112,1726654250532,-783.2,0.00019452,2]
[338457113,1726654250542,-500.0,0.00019452,2]
[338457114,1726654250552,-2886.36,0.00019452,2]
[338457115,1726654250563,-1636.64,0.00019452,2]
[338457116,1726654250573,-500.0,0.00019452,2]
[338457117,1726654250583,-991.33,0.00019452,2]
[338457118,1726654250592,-500.0,0.00019452,2]
[338457119,1726654250602,-1117.66,0.00019452,2]
[338457120,1726654250613,-1047.28,0.00019452,2]
[338457121,1726654250624,-500.0,0.00019452,2]
[338457122,1726654250635,-804.64,0.00019452,2]
[338457123,1726654250647,-500.0,0.00019452,2]
[338457124,1726654250658,-633.88,0.00019452,2]
[338457125,1726654250669,-3730.69,0.00019452,2]
[338457126,1726654250680,-1472.81,0.00019452,2]
[338457127,1726654250690,-639.2,0.00019452,2]
[338457128,1726654250706,-1217.35,0.00019452,2]
[338457129,1726654250717,-500.0,0.00019452,2]
[338457130,1726654250727,-850.88,0.00019452,2]
[338457131,1726654250738,-500.0,0.00019452,2]
[338457132,1726654250749,-1052.86,0.00019452,2]
[338457133,1726654250760,-801.67,0.00019452,2]
[338457134,1726654250770,-1188.56,0.00019452,2]
[338457135,1726654250783,-500.0,0.00019452,2]
[338457136,1726654250794,-500.0,0.00019452,2]
[338457137,1726654250804,-151.0,0.00019452,2]
[338457138,1726654250815,-998.42,0.00019452,2]
[338457139,1726654250826,-500.0,0.00019452,2]
[338457140,1726654250837,-500.0,0.00019452,2]
[338457141,1726654250847,-500.0,0.00019452,2]
[338457142,1726654250857,-500.0,0.00019452,2]
[338457143,1726654250867,-500.0,0.00019452,2]
[338457144,1726654250877,-1023.67,0.00019452,2]
[338457145,1726654250889,-500.0,0.00019452,2]
[338457146,1726654250899,-500.0,0.00019452,2]
[338457147,1726654250909,-500.0,0.00019452,2]
[338457148,1726654250918,-779.57,0.00019452,2]
[338457149,1726654250928,-500.0,0.00019452,2]
[338457150,1726654250938,-1735.12,0.00019452,2]
[338457151,1726654250947,-500.0,0.00019452,2]
[338457152,1726654250957,-642.72,0.00019452,2]
[338457153,1726654250966,-1123.68,0.00019452,2]
[338457154,1726654250975,-151.0,0.00019452,2]
[338457155,1726654250985,-172.937654,0.00019452,2]
[338457156,1726654250994,-512.14,0.00019452,2]
[338457157,1726654251003,-511.76,0.00019452,2]
[338457158,1726654251014,-700.41,0.00019452,2]
[338457159,1726654251023,-1376.67,0.00019452,2]
[338457160,1726654251034,-500.0,0.00019452,2]
[338457161,1726654251045,-715.96,0.00019452,2]
[338457162,1726654251055,-441.29340261,0.00019452,2]
[338457163,1726654251064,-935.09,0.00019452,2]
[338457164,1726654251073,-500.0,0.00019452,2]
[338457165,1726654251083,-500.0,0.00019452,2]
[338457166,1726654251093,-500.0,0.00019452,2]
[338457167,1726654251103,-1089.31,0.00019452,2]
[338457168,1726654251113,-500.0,0.00019452,2]
[338457169,1726654251125,-742.58,0.00019452,2]
[338457170,1726654251136,-500.0,0.00019452,2]
[338457171,1726654251147,-650.17,0.00019452,2]
[338457172,1726654251157,-500.0,0.00019452,2]
[338457173,1726654251167,-500.0,0.00019452,2]
[338457174,1726654251176,-500.0,0.00019452,2]
[338457175,1726654251186,-720.68,0.00019452,2]
[338457176,1726654251195,-600.00572667,0.00019452,2]
[338457177,1726654251206,-500.0,0.00019452,2]
[338457178,1726654251215,-1991.54,0.00019452,2]
[338457179,1726654251224,-500.0,0.00019452,2]
[338457180,1726654251234,-500.0,0.00019452,2]
[338457181,1726654251246,-413.36,0.00019452,2]
[338457182,1726654251258,-500.0,0.00019452,2]
[338457183,1726654251270,-5280.22,0.00019452,2]
[338457184,1726654251280,-829.67,0.00019452,2]
[338457185,1726654251292,-500.0,0.00019452,2]
[338457186,1726654251304,-500.0,0.00019452,2]
[338457187,1726654251315,-500.0,0.00019452,2]
[338457188,1726654251325,-500.0,0.00019452,2]
[338457189,1726654251335,-500.0,0.00019452,2]
[338457190,1726654251345,-1655.38,0.00019452,2]
[338457191,1726654251361,-500.0,0.00019452,2]
[338457192,1726654251374,-1195.64,0.00019452,2]
[338457193,1726654251384,-668.87,0.00019452,2]
[338457194,1726654251395,-500.0,0.00019452,2]
[338457195,1726654251406,-500.0,0.00019452,2]
[338457196,1726654251417,-500.0,0.00019452,2]
[338457197,1726654251427,-229.65646033,0.00019452,2]